[Event "Leca Open 2022"]
[Site "Leca da Palmeira"]
[Date "2022.07.31"]
[Round "2.6"]
[White "Asensio Linan, Teodoro"]
[Black "Stella, Andrea"]
[Result "0-1"]
[ECO "B50"]
[WhiteElo "2015"]
[BlackElo "2443"]
[Annotator "RC"]
[PlyCount "84"]
[EventDate "2022.08.02"]
[EventType "swiss"]
[EventCountry "POR"]
[SourceTitle "playchess.com"]
[Source "ChessBase"]
[SourceQuality "1"]
[TimeControl "5400+30"]

1. e4 c5 2. Nf3 d6 3. Bc4 Nf6 4. d3 Nc6 5. c3 g6 6. O-O Bg7 7. Nbd2 O-O 8. Bb3 b5 9. a4 b4 10. Nc4 Nd7 11. d4 bxc3 12. bxc3 Ba6 13. Re1 cxd4 14. cxd4 Rc8 15. Rb1 Nxd4 16. Nxd4 Bxc4 17. Be3 Bxb3 18. Nxb3 Nb6 19. Nd4 Nc4 20. Bg5 Qd7 21. Rb4 Rc5 22. Bh4 Rfc8 23. h3 Na3 24. Rf1 Rc4 25. Rxc4 Nxc4 26. Nf3 Nb2 27. Qd2 Nxa4 28. e5 Nc5 29. Rd1 Qc7 30. exd6 exd6 31. Qxd6 Qxd6 32. Rxd6 a5 33. Nd2 a4 34. Nc4 Ne4 35. Rd8+ Rxd8 36. Bxd8 Nd6 37. Na3 Bb2 38. Nc2 a3 39. Be7 Nb5 40. Nb4 Nc3 41. Bf6 Ne2+ 42. Kf1 Nc1 0-1

[Event "Leca Open 2022"]
[Site "Leca da Palmeira"]
[Date "2022.07.31"]
[Round "2.7"]
[White "Abdisalimov, Abdimalik"]
[Black "Zubizarreta Riego, Mikel"]
[Result "1-0"]
[ECO "B41"]
[WhiteElo "2437"]
[BlackElo "1975"]
[Annotator "RC"]
[PlyCount "87"]
[EventDate "2022.08.02"]
[EventType "swiss"]
[EventCountry "POR"]
[SourceTitle "playchess.com"]
[Source "ChessBase"]
[SourceQuality "1"]
[TimeControl "5400+30"]

1. e4 c5 2. Nf3 e6 3. d4 cxd4 4. Nxd4 a6 5. c4 Nf6 6. Nc3 Qc7 7. a3 b6 8. Be2 Bb7 9. f3 d6 10. O-O Nbd7 11. Be3 Be7 12. Rc1 Rc8 13. b4 O-O 14. Nb3 Qb8 15. Kh1 Rfd8 16. Na4 Bc6 17. Nb2 Bb7 18. Qd2 Ba8 19. Na4 Bc6 20. Nc3 Bb7 21. Rfd1 Ba8 22. Bf1 Ne5 23. Na4 Nfd7 24. Qf2 b5 25. Ba7 Qb7 26. Na5 Qc7 27. Bb6 Nxb6 28. Nxb6 Qa7 29. Qg1 Rb8 30. Nxa8 Qxa8 31. cxb5 axb5 32. f4 Nc4 33. Bxc4 bxc4 34. Rxc4 Rbc8 35. Qe3 Qa6 36. Qb3 d5 37. exd5 Rxd5 38. b5 Qa8 39. Nc6 Rxd1+ 40. Qxd1 Bf8 41. a4 Qb7 42. h3 Rc7 43. Qd8 g6 44. Na5 1-0

[Event "Leca Open 2022"]
[Site "Leca da Palmeira"]
[Date "2022.07.31"]
[Round "2.8"]
[White "Marques, Ricardo Taborda Trig"]
[Black "Nigmatov, Ortik"]
[Result "0-1"]
[ECO "E92"]
[WhiteElo "1991"]
[BlackElo "2437"]
[Annotator "RC"]
[PlyCount "84"]
[EventDate "2022.08.02"]
[EventType "swiss"]
[EventCountry "POR"]
[SourceTitle "playchess.com"]
[Source "ChessBase"]
[SourceQuality "1"]
[TimeControl "5400+30"]

1. d4 Nf6 2. c4 g6 3. Nc3 Bg7 4. e4 d6 5. Nf3 O-O 6. Be2 e5 7. Be3 Ng4 8. Bg5 f6 9. Bh4 Nd7 10. h3 Nh6 11. dxe5 dxe5 12. Qd5+ Nf7 13. O-O-O c6 14. Qd3 Qb6 15. Qc2 Nc5 16. g4 Be6 17. Kb1 a5 18. Na4 Nxa4 19. Qxa4 Qc5 20. Nd2 Rfb8 21. Nb3 Qe7 22. Rc1 Bh6 23. Rc2 b6 24. Rd1 g5 25. Bg3 Qe8 26. c5 b5 27. Qa3 a4 28. Nc1 b4 29. Qf3 b3 30. axb3 axb3 31. Rc3 Rb4 32. Nxb3 Rab8 33. Rdd3 Bg7 34. Bd1 Bc4 35. Rd2 Nd8 36. Na5 Bf7 37. Bb3 Ne6 38. Qd3 Ra8 39. Nxc6 Rxb3 40. Rxb3 Nxc5 41. Rc3 Nxd3 42. Rdxd3 Bf8 0-1

[Event "Leca Open 2022"]
[Site "Leca da Palmeira"]
[Date "2022.07.31"]
[Round "2.9"]
[White "Krishna C R G"]
[Black "Pinho, Tiago Filipe"]
[Result "1-0"]
[ECO "A05"]
[WhiteElo "2430"]
[BlackElo "1972"]
[Annotator "RC"]
[PlyCount "73"]
[EventDate "2022.08.02"]
[EventType "swiss"]
[EventCountry "POR"]
[SourceTitle "playchess.com"]
[Source "ChessBase"]
[SourceQuality "1"]
[TimeControl "5400+30"]

1. Nf3 {[%emt 0:00:04]} Nf6 {[%emt 0:09:06]} 2. c4 {[%emt 0:00:31]} c5 {[%emt 0:00:15]} 3. e3 {[%emt 0:01:10]} Nc6 {[%emt 0:00:54]} 4. d4 {[%emt 0:03:39]} cxd4 {[%emt 0:01:06]} 5. exd4 {[%emt 0:00:06]} d5 {[%emt 0:00:20]} 6. h3 {[%emt 0:00:07]} g6 {[%emt 0:01:04]} 7. Nc3 {[%emt 0:00:06]} Bg7 {[%emt 0:00:23]} 8. Be2 {[%emt 0:00:07]} O-O {[%emt 0:00:30]} 9. O-O {[%emt 0:00:03]} b6 {[%emt 0:08:19]} 10. Bg5 {[%emt 0:09:25]} Ne4 {[%emt 0:13:15]} 11. cxd5 {[%emt 0:02:12]} Nxc3 {[%emt 0:00:31]} 12. bxc3 {[%emt 0:00:02]} Qxd5 {[%emt 0:00:15]} 13. Qb3 {[%emt 0:00:05]} Qxb3 {[%emt 0:08:01]} 14. axb3 {[%emt 0:00:02]} e6 {[%emt 0:03:53]} 15. Ra2 {[%emt 0:02:48]} Bb7 {[%emt 0:00:28]} 16. Rfa1 {[%emt 0:02:17]} Rfc8 {[%emt 0:06:15]} 17. Nd2 {[%emt 0:02:38]} h6 {[%emt 0:07:06]} 18. Bh4 {[%emt 0:11:17]} Na5 {[%emt 0:04:47]} 19. b4 {[%emt 0:02:06]} Bd5 20. bxa5 {[%emt 0:01:00]} Bxa2 {[%emt 0:02:33]} 21. Rxa2 {[%emt 0:00:03]} bxa5 {[%emt 0:00:54]} 22. Bc4 {[%emt 0:26:47]} Rab8 {[%emt 0:01:24]} 23. Be7 {[%emt 0:01:00]} Bf8 {[%emt 0:02:32]} 24. Bxf8 {[%emt 0:00:13]} Kxf8 {[%emt 0:00:09]} 25. Kf1 {[%emt 0:00:22]} a4 {[%emt 0:02:53]} 26. Ke2 {[%emt 0:01:33]} a3 {[%emt 0:00:40]} 27. Rxa3 {[%emt 0:01:43]} Rb2 {[%emt 0:00:18]} 28. Bd3 {[%emt 0:04:50]} Rc7 {[%emt 0:01:50]} 29. Ke3 {[%emt 0:02:16]} Ke7 {[%emt 0:01:08]} 30. Nc4 {[%emt 0:00:09]} Rb8 {[%emt 0:00:39]} 31. Ne5 {[%emt 0:00:52]} Kf8 {[%emt 0:01:47]} 32. c4 {[%emt 0:01:34]} Ra8 {[%emt 0:04:25]} 33. Ra6 {[%emt 0:01:32]} Rb8 {[%emt 0:00:50]} 34. c5 {[%emt 0:00:08]} Rb3 {[%emt 0:00:56]} 35. Nc4 {[%emt 0:01:07]} Rb4 {[%emt 0:01:33]} 36. Ra5 {[%emt 0:01:46]} Ke7 {[%emt 0:05:02]} 37. Nd6 1-0

[Event "Leca Open 2022"]
[Site "Leca da Palmeira"]
[Date "2022.07.31"]
[Round "2.10"]
[White "Monteiro, Paulo Alexandre G"]
[Black "Akhvlediani, Irakli"]
[Result "0-1"]
[ECO "E47"]
[WhiteElo "1980"]
[BlackElo "2429"]
[Annotator "RC"]
[PlyCount "74"]
[EventDate "2022.08.02"]
[EventType "swiss"]
[EventCountry "POR"]
[SourceTitle "playchess.com"]
[Source "ChessBase"]
[SourceQuality "1"]
[TimeControl "5400+30"]

1. d4 {[%emt 0:00:03]} Nf6 {[%emt 0:00:06]} 2. c4 {[%emt 0:00:07]} e6 {[%emt 0:00:24]} 3. Nc3 {[%emt 0:00:12]} Bb4 {[%emt 0:00:05]} 4. e3 {[%emt 0:00:11]} O-O {[%emt 0:00:11]} 5. Bd3 {[%emt 0:00:18]} c5 {[%emt 0:00:05]} 6. Nf3 {[%emt 0:00:13]} Nc6 {[%emt 0:00:26]} 7. O-O {[%emt 0:00:39]} Bxc3 {[%emt 0:00:04]} 8. bxc3 {[%emt 0:00:05]} d6 {[%emt 0:00:02]} 9. e4 {[%emt 0:00:15]} e5 {[%emt 0:00:04]} 10. d5 {[%emt 0:00:05]} Ne7 {[%emt 0:00:03]} 11. Nh4 {[%emt 0:00:45]} Ne8 {[%emt 0:14:13]} 12. g3 {[%emt 0:20:41]} Bh3 {[%emt 0:06:26]} 13. Re1 {[%emt 0:00:52]} Qd7 {[%emt 0:05:40]} 14. f4 {[%emt 0:11:54]} g6 {[%emt 0:12:27]} 15. Qf3 {[%emt 0:09:12]} Bg4 {[%emt 0:07:49]} 16. Qf2 {[%emt 0:04:39]} f5 {[%emt 0:12:11]} 17. exf5 {[%emt 0:10:15]} Nxf5 {[%emt 0:02:56]} 18. Bxf5 {[%emt 0:02:55]} Bxf5 {[%emt 0:00:04]} 19. fxe5 {[%emt 0:04:08]} Bd3 {[%emt 0:09:46]} 20. e6 {[%emt 0:01:37]} Qg7 {[%emt 0:02:05]} 21. Qd2 {[%emt 0:02:03]} Bxc4 {[%emt 0:00:34]} 22. Ng2 {[%emt 0:01:42]} Qe5 {[%emt 0:05:24]} 23. Ne3 {[%emt 0:10:42]} Qe4 {[%emt 0:00:04]} 24. Qg2 {[%emt 0:01:58]} Bxd5 {[%emt 0:00:57]} 25. Qxe4 {[%emt 0:03:13]} Bxe4 {[%emt 0:00:02]} 26. e7 {[%emt 0:00:51]} Rf7 {[%emt 0:03:08]} 27. c4 {[%emt 0:02:28]} h5 {[%emt 0:01:11]} 28. Nd5 {[%emt 0:00:57]} Bxd5 {[%emt 0:03:38]} 29. cxd5 {[%emt 0:00:06]} Rf5 {[%emt 0:03:06]} 30. Re6 {[%emt 0:06:01]} Kf7 {[%emt 0:00:02]} 31. Bb2 {[%emt 0:00:29]} Rxd5 {[%emt 0:02:03]} 32. Rae1 {[%emt 0:00:33]} Rf5 {[%emt 0:00:40]} 33. h3 {[%emt 0:00:48]} d5 {[%emt 0:01:40]} 34. g4 {[%emt 0:01:43]} hxg4 {[%emt 0:00:05]} 35. hxg4 {[%emt 0:00:05]} Rf4 {[%emt 0:00:43]} 36. R6e5 {[%emt 0:01:54]} Rxg4+ {[%emt 0:00:06]} 37. Kh2 {[%emt 0:00:11]} Nf6 {[%emt 0:00:30]} 0-1

[Event "Leca Open 2022"]
[Site "Leca da Palmeira"]
[Date "2022.07.31"]
[Round "2.11"]
[White "Umetsubo, Cesar Hidemitsu"]
[Black "Bastos Gonzalez, Gonzalo"]
[Result "1/2-1/2"]
[ECO "E42"]
[WhiteElo "2405"]
[BlackElo "1946"]
[Annotator "RC"]
[PlyCount "80"]
[EventDate "2022.08.02"]
[EventType "swiss"]
[EventCountry "POR"]
[SourceTitle "playchess.com"]
[Source "ChessBase"]
[SourceQuality "1"]
[TimeControl "5400+30"]

1. d4 Nf6 2. c4 e6 3. Nc3 Bb4 4. e3 c5 5. Nge2 b6 6. a3 Ba5 7. Rb1 Na6 8. Ng3 Bb7 9. f3 O-O 10. Bd2 cxd4 11. exd4 Bxc3 12. bxc3 Nc7 13. c5 Bc6 14. cxb6 axb6 15. c4 Re8 16. Qc1 Rb8 17. Qb2 d5 18. Bf4 Rb7 19. Rc1 dxc4 20. Bxc4 Ncd5 21. Bd2 Qa8 22. O-O Ra7 23. Ra1 Bb7 24. Rfe1 Ba6 25. Bb3 Bd3 26. a4 Rc8 27. Ne4 Nxe4 28. fxe4 Nf6 29. d5 exd5 30. exd5 Be4 31. Bg5 Bxd5 32. Bxf6 gxf6 33. Ra3 Be4 34. Qxf6 Qc6 35. Qxc6 Bxc6 36. Bc2 Re8 37. Rb1 Rae7 38. Rg3+ Kh8 39. h4 Be4 40. Bxe4 Rxe4 1/2-1/2

[Event "Leca Open 2022"]
[Site "Leca da Palmeira"]
[Date "2022.07.31"]
[Round "2.12"]
[White "De Sousa Da Silva, Armando"]
[Black "Buscara, Sevan"]
[Result "0-1"]
[ECO "D10"]
[WhiteElo "1974"]
[BlackElo "2404"]
[Annotator "RC"]
[PlyCount "60"]
[EventDate "2022.08.02"]
[EventType "swiss"]
[EventCountry "POR"]
[SourceTitle "playchess.com"]
[Source "ChessBase"]
[SourceQuality "1"]
[TimeControl "5400+30"]

1. d4 d5 {[%emt 0:03:06]} 2. c4 {[%emt 0:01:20]} c6 {[%emt 0:00:46]} 3. cxd5 {[%emt 0:01:55]} cxd5 {[%emt 0:00:05]} 4. Nc3 {[%emt 0:01:54]} Nf6 {[%emt 0:00:12]} 5. Nf3 {[%emt 0:00:36]} Nc6 {[%emt 0:00:05]} 6. Bg5 {[%emt 0:00:52]} Ne4 {[%emt 0:00:28]} 7. Bf4 {[%emt 0:02:13]} e6 {[%emt 0:08:23]} 8. e3 {[%emt 0:07:43]} Bb4 {[%emt 0:01:01]} 9. Qb3 {[%emt 0:00:48]} g5 {[%emt 0:02:09]} 10. Be5 {[%emt 0:02:51]} f6 {[%emt 0:00:07]} 11. Bg3 {[%emt 0:00:13]} h5 {[%emt 0:00:08]} 12. h3 {[%emt 0:02:29]} Nxg3 {[%emt 0:00:23]} 13. fxg3 {[%emt 0:00:02]} Bd6 {[%emt 0:01:16]} 14. O-O-O {[%emt 0:02:57]} f5 {[%emt 0:02:48]} 15. Bd3 {[%emt 0:06:04]} Bxg3 {[%emt 0:02:15]} 16. Ne2 {[%emt 0:01:19]} Na5 {[%emt 0:05:13]} 17. Qc3 {[%emt 0:14:40]} Bd7 {[%emt 0:01:51]} 18. Kb1 {[%emt 0:00:30]} Rc8 {[%emt 0:04:02]} 19. Qd2 {[%emt 0:00:10]} Bd6 {[%emt 0:00:56]} 20. Nxg5 {[%emt 0:00:30]} Nc4 {[%emt 0:02:38]} 21. Bxc4 {[%emt 0:00:10]} Rxc4 {[%emt 0:00:06]} 22. h4 {[%emt 0:01:48]} Bb4 {[%emt 0:00:28]} 23. Nc3 {[%emt 0:06:20]} Bxc3 {[%emt 0:01:24]} 24. bxc3 {[%emt 0:00:01]} Qa5 {[%emt 0:00:44]} 25. Rc1 {[%emt 0:01:00]} Ke7 {[%emt 0:01:05]} 26. Nf3 {[%emt 0:05:19]} Rhc8 {[%emt 0:01:23]} 27. e4 {[%emt 0:00:10]} f4 {[%emt 0:07:24]} 28. Qxf4 {[%emt 0:01:58]} R8c6 {[%emt 0:00:08]} 29. Qg5+ {[%emt 0:02:41]} Kf8 {[%emt 0:00:58]} 30. Ne5 {[%emt 0:03:43]} Rb6+ 0-1

[Event "Leca Open 2022"]
[Site "Leca da Palmeira"]
[Date "2022.07.31"]
[Round "2.13"]
[White "Pierrot, Facundo"]
[Black "Harisurya Bharadwaj Gundepudi"]
[Result "1-0"]
[ECO "B15"]
[WhiteElo "2371"]
[BlackElo "1924"]
[Annotator "RC"]
[PlyCount "83"]
[EventDate "2022.08.02"]
[EventType "swiss"]
[EventCountry "POR"]
[SourceTitle "playchess.com"]
[Source "ChessBase"]
[SourceQuality "1"]
[TimeControl "5400+30"]

1. e4 {[%emt 0:00:03]} c6 {[%emt 0:03:51]} 2. d4 {[%emt 0:00:30]} d5 {[%emt 0:00:06]} 3. Nd2 {[%emt 0:00:32]} dxe4 {[%emt 0:00:09]} 4. Nxe4 {[%emt 0:00:05]} Nf6 {[%emt 0:00:03]} 5. Nxf6+ {[%emt 0:00:12]} exf6 {[%emt 0:00:04]} 6. c3 {[%emt 0:00:52]} Bd6 {[%emt 0:00:08]} 7. Bd3 {[%emt 0:00:35]} O-O {[%emt 0:00:07]} 8. Ne2 {[%emt 0:00:20]} Re8 {[%emt 0:00:13]} 9. O-O {[%emt 0:00:44]} Nd7 {[%emt 0:03:07]} 10. Bf4 {[%emt 0:05:50]} Nf8 {[%emt 0:00:23]} 11. Qd2 Bg4 12. Rfe1 {[%emt 0:05:34]} Bxe2 {[%emt 0:07:16]} 13. Bxe2 {[%emt 0:00:11]} Qc7 {[%emt 0:00:56]} 14. Bg3 {[%emt 0:00:53]} Bxg3 {[%emt 0:01:31]} 15. hxg3 {[%emt 0:00:08]} Re7 {[%emt 0:02:00]} 16. Bc4 {[%emt 0:06:15]} Rae8 {[%emt 0:02:13]} 17. Rxe7 {[%emt 0:00:09]} Qxe7 {[%emt 0:00:56]} 18. b4 {[%emt 0:03:29]} Nd7 {[%emt 0:05:08]} 19. a4 {[%emt 0:01:57]} g6 {[%emt 0:03:41]} 20. a5 {[%emt 0:05:35]} f5 {[%emt 0:00:35]} 21. d5 {[%emt 0:20:34]} cxd5 {[%emt 0:00:49]} 22. Bxd5 {[%emt 0:01:30]} Nf6 {[%emt 0:00:40]} 23. Bf3 {[%emt 0:00:07]} Kg7 {[%emt 0:00:47]} 24. Qd4 {[%emt 0:04:07]} Qc7 {[%emt 0:06:33]} 25. c4 {[%emt 0:02:26]} b6 26. axb6 {[%emt 0:05:33]} axb6 {[%emt 0:01:11]} 27. Rc1 {[%emt 0:03:22]} Rd8 {[%emt 0:01:20]} 28. Qb2 {[%emt 0:00:41]} Rb8 {[%emt 0:03:56]} 29. Qa1 {[%emt 0:00:52]} Qe7 {[%emt 0:00:19]} 30. c5 {[%emt 0:01:14]} bxc5 {[%emt 0:00:07]} 31. bxc5 {[%emt 0:00:07]} Rc8 {[%emt 0:00:22]} 32. Qd4 {[%emt 0:00:53]} Qd7 {[%emt 0:01:32]} 33. Qc3 {[%emt 0:00:38]} Rc7 {[%emt 0:02:19]} 34. c6 {[%emt 0:02:41]} Qe6 {[%emt 0:01:54]} 35. Re1 {[%emt 0:00:52]} Qd6 {[%emt 0:00:43]} 36. Rb1 {[%emt 0:01:02]} Qe7 {[%emt 0:02:11]} 37. Rb7 {[%emt 0:00:25]} Qd6 {[%emt 0:01:49]} 38. Rxc7 {[%emt 0:01:23]} Qxc7 {[%emt 0:00:14]} 39. g4 {[%emt 0:00:16]} fxg4 {[%emt 0:01:12]} 40. Bxg4 {[%emt 0:00:07]} g5 {[%emt 0:04:50]} 41. Bf5 {[%emt 0:00:18]} h6 {[%emt 0:03:50]} 42. g4 {[%emt 0:01:08]} 1-0

[Event "Leca Open 2022"]
[Site "Leca da Palmeira"]
[Date "2022.07.31"]
[Round "2.14"]
[White "Goncalves, Samuel Jesus P"]
[Black "Colijn, Stefan"]
[Result "1-0"]
[ECO "E06"]
[WhiteElo "1957"]
[BlackElo "2336"]
[Annotator "RC"]
[PlyCount "113"]
[EventDate "2022.08.02"]
[EventType "swiss"]
[EventCountry "POR"]
[SourceTitle "playchess.com"]
[Source "ChessBase"]
[SourceQuality "1"]
[TimeControl "5400+30"]

1. d4 {[%emt 0:04:53]} Nf6 {[%emt 0:00:26]} 2. c4 {[%emt 0:00:16]} e6 {[%emt 0:00:38]} 3. g3 {[%emt 0:00:18]} d5 {[%emt 0:00:09]} 4. Bg2 {[%emt 0:00:10]} Be7 {[%emt 0:00:08]} 5. Nf3 {[%emt 0:00:09]} O-O {[%emt 0:00:09]} 6. O-O {[%emt 0:00:06]} dxc4 {[%emt 0:00:20]} 7. Qc2 {[%emt 0:00:23]} a6 {[%emt 0:00:10]} 8. a4 {[%emt 0:00:12]} Bd7 {[%emt 0:02:04]} 9. Qxc4 {[%emt 0:00:25]} Bc6 {[%emt 0:00:49]} 10. Bg5 {[%emt 0:00:11]} a5 {[%emt 0:00:32]} 11. Nc3 {[%emt 0:03:15]} Bxf3 {[%emt 0:04:59]} 12. Bxf3 {[%emt 0:01:31]} c6 {[%emt 0:00:02]} 13. Rfd1 {[%emt 0:04:08]} Na6 {[%emt 0:06:30]} 14. e4 {[%emt 0:05:57]} Nb4 {[%emt 0:08:22]} 15. Rac1 {[%emt 0:02:46]} Rc8 {[%emt 0:06:39]} 16. h4 {[%emt 0:01:52]} Rc7 {[%emt 0:08:27]} 17. Rd2 {[%emt 0:08:29]} Ne8 {[%emt 0:07:55]} 18. Bf4 {[%emt 0:01:24]} Bd6 {[%emt 0:04:30]} 19. e5 {[%emt 0:00:31]} Be7 {[%emt 0:00:10]} 20. Qe2 {[%emt 0:02:39]} Rd7 {[%emt 0:00:26]} 21. Rcd1 {[%emt 0:02:52]} Nc7 {[%emt 0:01:42]} 22. Be4 {[%emt 0:06:41]} Ncd5 {[%emt 0:03:11]} 23. Qh5 {[%emt 0:02:05]} g6 {[%emt 0:01:21]} 24. Qh6 {[%emt 0:00:51]} Re8 {[%emt 0:08:25]} 25. Kg2 {[%emt 0:06:22]} Bf8 {[%emt 0:04:43]} 26. Qg5 {[%emt 0:00:05]} Qxg5 {[%emt 0:00:59]} 27. hxg5 {[%emt 0:00:16]} Nxf4+ {[%emt 0:12:49]} 28. gxf4 {[%emt 0:00:15]} Nd5 {[%emt 0:00:29]} 29. Bxd5 {[%emt 0:00:27]} exd5 {[%emt 0:09:27]} 30. Rh1 {[%emt 0:00:43]} Bb4 {[%emt 0:02:32]} 31. Rd3 {[%emt 0:00:57]} Bxc3 {[%emt 0:00:06]} 32. Rxc3 {[%emt 0:00:33]} Kg7 {[%emt 0:00:47]} 33. f5 {[%emt 0:00:47]} gxf5 {[%emt 0:00:16]} 34. Kg3 {[%emt 0:00:06]} Re6 {[%emt 0:04:12]} 35. Kf4 {[%emt 0:00:09]} h6 {[%emt 0:00:26]} 36. Kxf5 {[%emt 0:01:20]} hxg5 {[%emt 0:00:18]} 37. Rch3 {[%emt 0:00:54]} Kf8 {[%emt 0:00:36]} 38. Rh8+ {[%emt 0:01:00]} Ke7 {[%emt 0:00:18]} 39. Ra8 {[%emt 0:00:22]} Rd8 {[%emt 0:00:43]} 40. Rxa5 {[%emt 0:00:30]} Kd7 {[%emt 0:02:36]} 41. Rh7 {[%emt 0:01:07]} Rf8 {[%emt 0:00:52]} 42. Kxg5 {[%emt 0:00:27]} Kc7 {[%emt 0:00:34]} 43. Rc5 {[%emt 0:01:17]} b6 {[%emt 0:00:27]} 44. Rc3 {[%emt 0:00:22]} c5 {[%emt 0:00:22]} 45. f4 {[%emt 0:00:31]} Rc6 {[%emt 0:00:33]} 46. f5 {[%emt 0:02:52]} Kd7 {[%emt 0:00:14]} 47. Re3 {[%emt 0:01:13]} Rg8+ {[%emt 0:00:56]} 48. Kf4 {[%emt 0:00:12]} cxd4 {[%emt 0:00:17]} 49. e6+ {[%emt 0:01:17]} Kd8 {[%emt 0:00:46]} 50. exf7 {[%emt 0:00:30]} Rf8 {[%emt 0:00:10]} 51. Rd3 {[%emt 0:01:05]} Ke7 {[%emt 0:00:54]} 52. Rxd4 {[%emt 0:00:17]} Rxf7 {[%emt 0:00:08]} 53. Rxf7+ {[%emt 0:00:12]} Kxf7 {[%emt 0:00:01]} 54. Ke5 {[%emt 0:00:40]} Rc2 {[%emt 0:01:23]} 55. b4 {[%emt 0:00:11]} Ke7 56. Kxd5 {[%emt 0:00:29]} Rf2 {[%emt 0:00:59]} 57. Kc6 {[%emt 0:00:20]} 1-0

[Event "Leca Open 2022"]
[Site "Leca da Palmeira"]
[Date "2022.07.31"]
[Round "2.15"]
[White "Martins, Bruno Andre Leite"]
[Black "Santos, Micael"]
[Result "1-0"]
[ECO "B33"]
[WhiteElo "2331"]
[BlackElo "1899"]
[Annotator "RC"]
[PlyCount "63"]
[EventDate "2022.08.02"]
[EventType "swiss"]
[EventCountry "POR"]
[SourceTitle "playchess.com"]
[Source "ChessBase"]
[SourceQuality "1"]
[TimeControl "5400+30"]

1. e4 {[%emt 0:00:04]} c5 {[%emt 0:00:07]} 2. Nf3 {[%emt 0:00:06]} Nc6 {[%emt 0:00:05]} 3. d4 {[%emt 0:00:11]} cxd4 {[%emt 0:00:06]} 4. Nxd4 {[%emt 0:00:05]} Nf6 {[%emt 0:00:09]} 5. Nc3 {[%emt 0:00:04]} e6 {[%emt 0:00:25]} 6. Ndb5 {[%emt 0:00:27]} a6 {[%emt 0:00:17]} 7. Nd6+ {[%emt 0:00:06]} Bxd6 {[%emt 0:00:07]} 8. Qxd6 {[%emt 0:00:05]} Qe7 {[%emt 0:00:08]} 9. Bf4 {[%emt 0:00:12]} O-O {[%emt 0:00:17]} 10. Qxe7 {[%emt 0:00:09]} Nxe7 {[%emt 0:00:06]} 11. Bd6 {[%emt 0:00:07]} Re8 {[%emt 0:00:25]} 12. f3 {[%emt 0:01:22]} b5 {[%emt 0:03:51]} 13. a4 {[%emt 0:00:48]} bxa4 {[%emt 0:00:20]} 14. Nxa4 {[%emt 0:00:42]} Ra7 {[%emt 0:06:47]} 15. Nc5 {[%emt 0:08:25]} Nc6 {[%emt 0:02:23]} 16. Bc4 {[%emt 0:04:56]} a5 {[%emt 0:02:27]} 17. Kf2 {[%emt 0:01:26]} Kh8 {[%emt 0:07:11]} 18. Rhd1 {[%emt 0:02:25]} Ng8 {[%emt 0:01:34]} 19. c3 {[%emt 0:01:47]} Nge7 {[%emt 0:00:59]} 20. b4 {[%emt 0:00:39]} Ng6 {[%emt 0:05:48]} 21. b5 {[%emt 0:01:27]} Nce5 {[%emt 0:00:14]} 22. Be2 {[%emt 0:00:11]} f5 {[%emt 0:07:57]} 23. f4 {[%emt 0:02:50]} Nf7 {[%emt 0:01:32]} 24. b6 {[%emt 0:00:53]} Rb7 {[%emt 0:02:51]} 25. Nxb7 {[%emt 0:00:59]} Bxb7 {[%emt 0:00:05]} 26. exf5 {[%emt 0:00:17]} Nxd6 {[%emt 0:02:16]} 27. Rxd6 {[%emt 0:00:11]} Nxf4 {[%emt 0:00:41]} 28. Bf3 {[%emt 0:00:50]} Bxf3 {[%emt 0:06:22]} 29. Kxf3 {[%emt 0:00:10]} g5 {[%emt 0:01:14]} 30. Rxa5 {[%emt 0:00:55]} Nd5 {[%emt 0:00:59]} 31. Rdxd5 {[%emt 0:00:33]} exd5 {[%emt 0:00:16]} 32. b7 {[%emt 0:00:07]} 1-0

[Event "Leca Open 2022"]
[Site "Leca da Palmeira"]
[Date "2022.08.01"]
[Round "3.1"]
[White "Balaji, Aaravamudhan"]
[Black "Motylev, Alexander"]
[Result "0-1"]
[ECO "E24"]
[WhiteElo "2228"]
[BlackElo "2632"]
[Annotator "TA"]
[PlyCount "68"]
[EventDate "2022.08.02"]
[EventType "swiss"]
[EventCountry "POR"]
[SourceTitle "playchess.com"]
[Source "ChessBase"]
[SourceQuality "1"]
[TimeControl "5400+30"]

{[%evp 10,68,-7,-14,-28,-20,-22,-12,-27,-18,-17,0,-18,-26,-12,-25,-30,-80,-86,-96,-82,-106,-108,-119,-108,-138,-110,-203,-196,-262,-262,-262,-262,-263,-270,-270,-263,-258,-258,-330,-237,-329,-330,-331,-330,-360,-356,-372,-353,-382,-377,-384,-382,-427,-393,-492,-487,-492,-485,-497,-462]} 1. d4 {[%emt 0:00:05]} Nf6 {[%emt 0:00:15]} 2. c4 {[%emt 0:00:09]} e6 {[%emt 0:00:14]} 3. Nc3 {[%emt 0:00:30]} Bb4 {[%emt 0:00:26]} 4. a3 {[%emt 0:00:10]} Bxc3+ {[%emt 0:00:12]} 5. bxc3 {[%emt 0:00:08]} b6 {[%emt 0:00:18]} 6. f3 {[%emt 0:00:34]} Nc6 {[%emt 0:00:15] E24: Nimzo-Indian: Sämisch: Unusual Black 5th moves and 5...c5 sidelines.} 7. e4 {[%emt 0:00:25]} Na5 $1 {[%emt 0:00:18][%mdl 4] is recently more successful than 7...Ba6.} 8. Bg5 {[%emt 0:01:24]} d6 {[%emt 0:00:53] The position is equal.} 9. Bd3 $1 {[%emt 0:01:07]} h6 {[%emt 0:00:39]} 10. Bh4 {[%emt 0:00:10]} g5 {[%emt 0:00:15]} 11. Bf2 {[%emt 0:01:23]} Ba6 {[%emt 0:00:41]} 12. Ne2 {[%emt 0:12:22]} Qd7 {[%emt 0:10:29] [#]} (12... Bxc4 $2 13. Bxc4 Nxc4 14. Qa4+ Qd7 15. Qxc4 $18) 13. Nc1 $146 {[%emt 0:08:50]} (13. h4 $11 g4 14. c5 Bxd3 15. Qxd3) ({Predecessor:} 13. e5 dxe5 14. dxe5 Nh5 15. g4 Bb7 16. gxh5 Bxf3 17. Rf1 Bxh5 18. Be4 O-O-O 19. Qxd7+ Rxd7 {0-1 (30) Mirzoev,E (2412)-Schlosser,P (2501) Pardubice 2018}) 13... Bxc4 $17 {[%emt 0:03:18] Black converts the advantage convincingly.} 14. Bxc4 {[%emt 0:05:10]} Nxc4 {[%emt 0:00:55] Pair of Knights!} 15. a4 {[%emt 0:00:43]} Qc6 {[%emt 0:10:18][%cal Oc4e3] Black is more active.} 16. Qe2 {[%emt 0:07:54] Inhibits Ne3.} d5 {[%emt 0:03:01][%cal Rd5e4]} 17. Nd3 {[%emt 0:20:43]} a5 {[%emt 0:01:40][%cal Rd5e4] Prevents Nb4.} ({But not} 17... dxe4 18. Nb4 exf3 19. gxf3 $16) 18. O-O {[%emt 0:00:33]} (18. exd5 $17 Nxd5 19. O-O) 18... dxe4 $19 {[%emt 0:05:10]} 19. Ne5 {[%emt 0:00:10]} (19. fxe4 $142 Qxe4 20. Qc2) 19... Nxe5 {[%emt 0:00:49]} 20. dxe5 {[%emt 0:00:07]} exf3 {[%emt 0:00:56]} 21. Qxf3 {[%emt 0:01:43]} Qxf3 {[%emt 0:00:24]} 22. gxf3 {[%emt 0:00:05]} Nd5 {[%emt 0:07:21]} 23. c4 {[%emt 0:00:29]} Nf4 {[%emt 0:00:06]} 24. Ra2 {[%emt 0:00:48]} Nd3 {[%emt 0:02:12]} 25. Rc2 {[%emt 0:04:07]} O-O-O {[%emt 0:11:00]} (25... Nxe5 $2 26. Bd4 f6 27. c5 $19) 26. c5 {[%emt 0:02:00]} Kb7 {[%emt 0:00:22]} ({Not} 26... Nxc5 $2 27. Bxc5 bxc5 28. Rfc1 $19) (26... Nxe5 27. cxb6 c6 28. Bg3 $17) 27. Rb1 {[%emt 0:00:47]} Nxe5 {[%emt 0:02:45]} 28. Kg2 {[%emt 0:01:24]} Rd5 {[%emt 0:03:28]} 29. cxb6 {[%emt 0:06:52]} c6 {[%emt 0:00:19]} 30. Bg3 {[%emt 0:00:49]} Nd3 {[%emt 0:01:51]} 31. Rc4 {[%emt 0:02:01]} e5 {[%emt 0:02:07]} 32. Rb3 {[%emt 0:00:43]} Rhd8 {[%emt 0:01:47] Black is clearly winning.} 33. Rbc3 {[%emt 0:00:06]} R8d6 {[%emt 0:00:41]} 34. Re4 {[%emt 0:00:52]} f6 {[%emt 0:00:49] Weighted Error Value: White=0.26 (precise) /Black=0.07 (flawless)} 0-1